bitfinex-derivatives/quotes_ETHF0:USTF0_20251116
["timestamp","ask_amount","ask_price","bid_price","bid_amount"]
[1763268287349,15.132,3191.4,3191.3,0.00470507]
[1763268289250,0.83989381,3191.5,3191.3,0.00470507]
[1763268289444,15.132,3191.4,3191.3,0.23810507]
[1763268290749,0.83989381,3191.6,3191.5,0.379]
[1763268290948,15.97189381,3191.6,3191.5,0.379]
[1763268291153,15.97189381,3191.6,3191.5,0.1456]
[1763268291846,0.83989381,3191.6,3191.5,0.1456]
[1763268292046,15.97189381,3191.6,3191.5,0.1456]
[1763268297355,15.132,3191.6,3191.5,0.1456]
[1763268300762,16.25311278,3191.6,3191.5,0.1456]
[1763268302266,16.25311278,3191.6,3191.3,0.00470507]
[1763268302467,1.12111278,3191.5,3191.0,0.1364]
[1763268302767,3.2078,3191.1,3191.0,0.1364]
[1763268302961,18.3378,3191.1,3191.0,0.1364]
[1763268306070,19.17749292,3191.1,3190.7,0.00470507]
[1763268306372,0.83919982,3190.8,3190.7,0.00470507]
[1763268306570,16.25111278,3190.8,3190.7,0.00470507]
[1763268307172,16.25111278,3190.8,3190.7,5.07e-06]
[1763268307375,16.24745239,3190.8,3190.7,5.07e-06]
[1763268308376,15.13,3190.8,3190.7,5.07e-06]
[1763268308575,16.24745239,3190.8,3190.7,5.07e-06]
[1763268309379,15.13,3190.8,3190.7,5.07e-06]
[1763268310877,1.11745239,3190.9,3190.7,5.07e-06]
[1763268311180,15.96960482,3190.8,3190.7,5.07e-06]
[1763268311877,0.83760482,3190.8,3190.7,5.07e-06]
[1763268312078,13.536,3190.8,3190.7,0.24380507]
[1763268312676,4.04540482,3191.1,3191.0,0.3907]
[1763268312983,16.7428,3191.1,3191.0,0.3907]
[1763268313280,18.3398,3191.1,3191.0,0.3907]
[1763268314477,3.2078,3191.1,3191.0,0.1469]
[1763268314685,18.3398,3191.1,3191.0,0.1469]
[1763268315883,18.3388,3191.1,3191.0,0.1469]
[1763268326390,19.17640482,3191.1,3191.0,0.1469]
[1763268328686,18.3388,3191.1,3191.0,0.3974]
[1763268328888,18.3378,3191.1,3191.0,0.3974]
[1763268329493,3.2078,3191.1,3191.0,0.3974]
[1763268329695,18.3378,3191.1,3191.0,0.3974]
[1763268331095,18.3378,3191.1,3191.0,0.1469]
[1763268331391,18.3378,3191.1,3191.0,0.3848]
[1763268331998,15.13,3191.1,3191.0,0.3848]
[1763268332797,3.2078,3191.5,3191.4,0.2379]
[1763268332996,18.3368,3191.5,3191.4,0.2379]
[1763268334594,18.3368,3191.5,3191.0,3.3547]
[1763268334792,19.17440482,3191.5,3191.0,0.1469]
[1763268338500,0.83760482,3191.4,3191.0,0.1469]
[1763268339099,4.04540482,3191.4,3191.0,0.1469]
[1763268339600,15.129,3191.3,3191.0,0.1469]
[1763268340805,0.83760482,3191.5,3191.4,0.2379]
[1763268340994,15.96660482,3191.5,3191.0,0.1469]
[1763268341301,4.04595757,3191.4,3191.0,0.1469]
[1763268341697,4.04595757,3191.4,3191.3,0.2379]
[1763268345905,4.04595757,3191.4,3191.0,0.1469]
[1763268347896,4.04595757,3191.4,3191.3,0.2379]
[1763268351103,4.04595757,3191.4,3191.0,0.1469]
[1763268357314,0.83815757,3191.3,3191.0,0.1469]
[1763268357509,15.127,3191.2,3191.1,0.2379]
[1763268357708,15.127,3191.2,3191.0,0.1469]
[1763268358214,15.127,3191.2,3191.1,0.2379]
[1763268363112,15.127,3191.2,3191.0,0.1469]
[1763268363324,15.127,3191.2,3191.1,0.2375]
[1763268364824,0.83815757,3191.3,3191.2,0.2375]
[1763268365012,15.96415757,3191.3,3191.2,0.2375]
[1763268365325,15.96415757,3191.3,3191.0,0.1469]
[1763268365621,0.83815757,3191.2,3191.0,0.1469]
[1763268367319,15.126,3191.1,3191.0,0.1469]
[1763268369228,18.3338,3191.1,3191.0,0.1469]
[1763268375924,18.3338,3191.1,3191.0,0.3944]
[1763268376527,18.3338,3191.1,3191.0,0.1469]
[1763268378532,3.2078,3191.1,3191.0,0.1469]
[1763268378733,13.5098,3191.1,3191.0,0.1469]
[1763268385946,10.302,3191.1,3191.0,0.1469]
[1763268387140,10.302,3191.1,3191.0,0.3944]
[1763268387337,18.3328,3191.2,3191.1,0.2475]
[1763268389442,15.125,3191.2,3191.1,0.2475]
[1763268395551,0.83815757,3191.5,3191.4,0.2333]
[1763268395745,11.084,3191.6,3191.5,0.3767]
[1763268395946,11.084,3191.6,3191.5,0.1434]
[1763268397246,11.084,3191.6,3191.2,1.1250349]
[1763268397444,11.92215757,3191.6,3191.0,1.2719349]
[1763268397649,0.83815757,3191.5,3191.0,0.1469]
[1763268397955,0.83815757,3191.3,3191.0,0.1469]
[1763268398254,15.96115757,3191.2,3191.0,0.1469]
[1763268400154,19.16895757,3191.2,3191.0,0.1469]
[1763268400551,19.16895757,3191.2,3190.7,5.07e-06]
[1763268402454,0.83815757,3191.0,3190.7,5.07e-06]
[1763268402656,15.123,3190.9,3190.7,5.07e-06]
[1763268403051,15.96115757,3190.9,3190.7,5.07e-06]
[1763268403552,15.123,3190.9,3190.7,5.07e-06]
[1763268404349,0.83815757,3191.0,3190.7,5.07e-06]
[1763268404551,4.04595757,3191.2,3191.0,0.3767]
[1763268404759,3.2078,3191.2,3191.1,0.2333]
[1763268405061,14.2828,3191.2,3191.1,0.2333]
[1763268405263,3.2078,3191.2,3191.1,0.2333]
[1763268405464,11.9148,3191.2,3191.1,0.2333]
[1763268408261,3.2078,3191.2,3191.1,0.2333]
[1763268409657,18.33408168,3191.7,3191.5,0.1434]
[1763268410454,15.12628168,3191.7,3191.5,0.1434]
[1763268423166,15.12628168,3191.7,3191.6,0.2486]
[1763268424469,15.12628168,3191.7,3191.5,0.1434]
[1763268427470,15.12628168,3191.7,3191.6,0.2486]
[1763268427769,0.00328168,3191.7,3191.6,0.2486]
[1763268431165,0.00328168,3191.7,3191.6,3.4564]
[1763268432873,0.00328168,3191.7,3191.6,4.5814349]
[1763268439073,3.2078,3192.4,3192.3,0.2493]
[1763268439971,3.21051917,3192.4,3192.3,0.25218714]
[1763268440176,0.00273448,3192.7,3192.6,0.2493]
[1763268440373,0.00273448,3192.7,3192.6,3.4571]
[1763268441065,0.00273448,3192.7,3192.6,3.2078]
[1763268441268,0.00594075,3192.7,3192.6,3.2078]
[1763268441674,0.00594075,3192.7,3192.5,0.1354]
[1763268442473,0.00594075,3192.7,3192.6,0.2493]
[1763268442670,0.00594075,3192.7,3192.5,0.1354]
[1763268446485,0.00594075,3192.7,3192.6,0.2493]
[1763268449778,0.00594075,3192.7,3192.3,0.00759221]
[1763268449970,3.2078,3192.4,3192.3,0.00759221]
[1763268450170,3.2078,3192.4,3192.3,0.00470507]
[1763268450370,4.04595757,3192.4,3192.0,0.1354]
[1763268451467,4.04595757,3192.4,3192.0,0.13927663]
[1763268451977,0.83815757,3192.3,3192.0,0.13927663]
[1763268452176,3.2078,3192.4,3192.2,0.2425]
[1763268452177,4.04595757,3192.4,3192.2,0.2425]
[1763268452376,19.15995757,3192.4,3192.2,0.2425]
[1763268453476,19.15995757,3192.4,3192.3,0.2425]
[1763268453675,18.3218,3192.4,3192.3,0.2425]
[1763268453880,3.2078,3192.4,3192.3,0.2425]
[1763268455081,4.04595757,3192.4,3192.3,0.2425]
[1763268456584,4.04595757,3192.4,3192.0,0.13927663]
[1763268458084,0.83815757,3192.1,3191.5,0.1434]
[1763268458282,3.2078,3191.6,3191.5,0.1434]
[1763268458584,4.04630051,3191.6,3191.0,0.1434]
[1763268458789,4.04630051,3191.6,3190.5,1.82723106]
[1763268458790,3.2078,3191.1,3190.5,0.1395]
[1763268458980,15.95338673,3191.0,3190.5,0.14693525]
[1763268459180,15.115,3191.0,3190.5,0.14693525]
[1763268459574,15.95338673,3191.0,3190.5,0.14693525]
[1763268460180,15.115,3191.0,3190.5,0.14693525]
[1763268460984,3.2078,3190.7,3190.5,0.14693525]
[1763268464079,3.2078,3190.7,3190.5,0.00743525]
[1763268464277,6.0,3190.6,3190.0,0.1395]
[1763268464480,3.2078,3190.1,3190.0,0.1395]
[1763268465193,3.21108279,3190.1,3190.0,0.00225481]
[1763268465486,3.21108279,3190.1,3190.0,0.1395]
[1763268465883,3.21108279,3190.1,3189.7,0.00470507]
[1763268466286,3.21108279,3190.1,3189.7,0.00696351]
[1763268466792,3.21108279,3190.1,3190.0,0.1395]
[1763268467185,18.33708279,3190.1,3190.0,0.382]
[1763268467781,18.33708279,3190.1,3190.0,0.1395]
[1763268470397,18.33708279,3190.1,3190.0,0.382]
[1763268472095,18.33708279,3190.1,3190.0,0.1395]
[1763268473893,18.33708279,3190.1,3189.7,0.00696351]
[1763268474292,18.33708279,3190.1,3190.0,0.1395]
[1763268475500,18.33708279,3190.1,3189.7,0.00696351]
[1763268475800,18.33708279,3190.1,3190.0,0.1395]
[1763268476504,18.33708279,3190.1,3189.7,0.00696351]
[1763268476902,18.33708279,3190.1,3190.0,0.1395]
[1763268479902,18.34208279,3190.1,3190.0,0.1395]
[1763268480704,18.34208279,3190.1,3190.0,0.382]
[1763268483098,3.21108279,3190.1,3190.0,0.382]
[1763268483295,13.14308279,3190.1,3190.0,0.1395]
[1763268483799,13.14308279,3190.1,3190.0,0.3814]
[1763268488605,13.14308279,3190.1,3190.0,0.1395]
[1763268490797,13.98146952,3190.1,3190.0,0.1395]
[1763268491599,13.98146952,3190.1,3190.0,0.3814]
[1763268491897,0.00328279,3190.1,3190.0,0.3814]
[1763268492097,3.2078,3190.5,3190.4,0.2419]
[1763268492606,0.83838673,3190.9,3190.4,0.2419]
[1763268492808,3.2078,3191.0,3190.9,0.2419]
[1763268493011,3.21105909,3191.0,3190.9,0.2419]
[1763268493904,3.21105909,3191.0,3190.5,0.1432]
[1763268494101,4.04944582,3191.0,3190.5,0.1432]
[1763268494303,4.04618673,3190.6,3190.0,0.1395]
[1763268494509,15.138,3190.5,3190.0,0.1395]
[1763268498306,15.138,3190.5,3190.4,0.2294]
[1763268499616,1.11800068,3190.9,3190.8,0.2294]
[1763268499617,0.83048741,3190.9,3190.8,0.2294]
[1763268499911,12.23,3192.2,3192.1,0.2294]
[1763268500316,0.2331,3191.8,3191.7,3.2078]
[1763268500511,0.2331,3191.4,3191.3,3.2078]
[1763268500703,0.1374,3191.5,3190.8,3.2078]
[1763268500909,0.1374,3191.5,3190.8,3.44433598]
[1763268500910,0.2331,3190.9,3190.8,3.44433598]
[1763268501805,0.14523375,3191.5,3190.8,3.44433598]
[1763268502513,0.00783375,3191.5,3190.8,3.44433598]
[1763268502712,0.13293375,3191.5,3190.8,3.44433598]
[1763268504120,0.2331,3190.9,3190.8,3.44433598]
[1763268504314,0.2331,3190.9,3190.8,3.21493598]
[1763268505108,3.2078,3191.3,3190.8,3.44433598]
[1763268505417,0.2331,3191.1,3191.0,0.3732]
[1763268505915,0.2331,3191.1,3191.0,0.2294]
[1763268506311,0.2331,3190.9,3190.8,3.44433598]
[1763268506516,0.2331,3190.9,3190.8,3.21493598]
[1763268507921,0.2331,3190.9,3190.8,3.44433598]
[1763268508219,8.2378,3191.3,3190.8,3.44433598]
[1763268508617,0.2331,3190.9,3190.8,3.21493598]
[1763268510313,0.2331,3190.9,3190.8,3.45143598]
[1763268510723,8.2378,3191.3,3190.8,3.45143598]
[1763268511020,0.2345,3190.9,3190.8,3.21493598]
[1763268511522,0.2345,3190.9,3190.8,3.45143598]
[1763268512517,8.2378,3191.3,3190.8,3.45143598]
[1763268512818,0.2345,3190.9,3190.8,3.45143598]
[1763268515622,8.4723,3191.3,3190.8,3.21493598]
[1763268516324,5.2645,3191.3,3190.8,3.21493598]
[1763268516622,0.00783375,3191.5,3191.2,0.2365]
[1763268516820,0.24233375,3191.5,3191.4,0.2365]
[1763268517622,0.00783375,3191.5,3191.4,0.2365]
[1763268517825,0.24233375,3191.5,3191.4,0.2365]
[1763268518921,0.00783375,3191.5,3191.4,0.2365]
[1763268522725,0.2345,3191.3,3191.2,3.4443]
[1763268523530,0.2345,3191.3,3191.2,3.2078]
[1763268524030,0.2345,3191.3,3191.2,3.4443]
[1763268526126,0.2345,3191.3,3191.2,0.2365]
[1763268526333,0.2345,3191.2,3191.1,3.2078]
[1763268528329,0.2345,3191.2,3191.1,3.4443]
[1763268528534,0.00783375,3191.5,3191.1,3.4443]
[1763268529036,0.2345,3191.2,3191.1,3.4443]
[1763268533838,0.2345,3190.9,3190.8,0.24363598]
[1763268534227,0.2345,3190.9,3190.8,0.00713598]
[1763268543338,4.96440826,3191.3,3191.1,0.2464]
[1763268543538,19.2179,3191.3,3191.2,0.2464]
[1763268544046,15.3719,3191.3,3191.2,0.2464]
[1763268546945,15.137,3191.3,3191.2,0.2464]
[1763268548046,15.3719,3191.3,3191.2,0.2464]
[1763268549142,0.2349,3191.3,3191.2,0.2464]
[1763268551747,0.2349,3191.2,3191.1,3.2078]
[1763268552745,0.2349,3191.2,3191.1,3.4542]
[1763268552945,0.00783375,3191.5,3191.1,3.4542]
[1763268553250,0.00783375,3191.5,3191.4,0.2464]
[1763268555458,14.76953096,3191.6,3191.5,0.3915]
[1763268555655,14.76953096,3191.6,3191.5,3.5993]
[1763268556449,14.77354814,3191.6,3191.5,3.5993]
[1763268556761,0.00401718,3191.6,3191.5,3.5993]
[1763268557849,0.00470507,3191.9,3191.8,0.2421]
[1763268558955,0.00819679,3191.9,3191.8,0.2421]
[1763268560061,15.14,3192.6,3192.5,0.3915]
[1763268560253,15.14,3192.6,3192.5,3.5993]
[1763268561161,15.14268174,3192.6,3192.5,3.5993]
[1763268561963,15.38208174,3192.6,3192.5,3.5993]
[1763268562159,15.38208174,3192.6,3192.5,3.2078]
[1763268562661,0.2394,3192.1,3192.0,3.2078]
[1763268563362,0.2394,3192.1,3192.0,3.4499]
[1763268563560,0.1459,3192.5,3192.0,3.5993]
[1763268563863,15.38208174,3192.6,3192.5,0.3915]
[1763268564255,15.14268174,3192.6,3192.5,0.3915]
[1763268567665,0.00268174,3192.6,3192.5,0.3915]
[1763268570067,0.00470507,3192.9,3192.8,0.2331]
[1763268570373,0.00470507,3192.9,3192.8,3.4409]
[1763268570965,0.00786504,3192.9,3192.8,3.4409]
[1763268574972,0.24406504,3192.9,3192.8,3.4409]
[1763268580175,0.24406504,3192.9,3192.8,0.2331]
[1763268580377,0.24406504,3192.9,3192.8,3.4409]
[1763268582077,0.24406504,3192.9,3192.8,3.2078]
[1763268582375,0.2362,3192.6,3192.5,0.23780507]
[1763268587182,0.2362,3192.6,3192.5,0.00470507]
[1763268587774,0.2362,3192.6,3192.5,0.23780507]
[1763268588784,0.2362,3192.6,3192.5,0.00470507]
[1763268589581,0.2362,3192.6,3192.5,0.23780507]
[1763268590581,0.2362,3192.6,3192.5,0.38690507]
[1763268590782,0.84453555,3192.9,3192.8,0.2331]
[1763268591085,0.00786504,3192.9,3192.8,0.2331]
[1763268595081,0.24406504,3192.9,3192.8,0.2331]
[1763268596972,0.2362,3192.8,3192.7,3.2078]
[1763268597482,1.07287051,3192.8,3192.7,3.2078]
[1763268598887,1.07287051,3192.8,3192.7,3.4409]
[1763268599390,1.07287051,3192.8,3192.7,3.2078]
[1763268599788,0.83667051,3192.8,3192.7,3.456]
[1763268599992,0.84453555,3192.9,3192.8,0.2482]
[1763268600287,1.07443555,3192.9,3192.8,0.2482]
[1763268602192,0.84453555,3192.9,3192.8,0.2482]
[1763268602893,0.00786504,3192.9,3192.8,0.2482]
[1763268603493,0.23776504,3192.9,3192.8,0.2482]
[1763268608307,0.00786504,3192.9,3192.8,0.2482]
[1763268617109,0.24,3192.8,3192.7,3.2078]
[1763268617701,0.24,3192.4,3192.3,3.2078]
[1763268618016,1.08123864,3192.4,3192.3,3.2078]
[1763268618209,0.84123864,3192.5,3192.4,0.2412]
[1763268618709,0.84123864,3192.6,3192.5,0.3881]
[1763268619014,1.08123864,3192.6,3192.5,0.3881]
[1763268619307,0.84123864,3192.6,3192.5,0.3881]
[1763268619509,0.84123864,3192.7,3192.6,0.2412]
[1763268619708,15.119,3192.8,3192.7,0.2412]
[1763268619914,15.359,3192.8,3192.7,0.2412]
[1763268621606,0.24,3192.6,3192.5,0.3881]
[1763268622710,15.119,3192.8,3192.7,0.2412]
[1763268622711,15.359,3192.8,3192.7,0.2412]
[1763268626130,15.119,3192.8,3192.7,3.449]
[1763268626311,0.00786504,3192.9,3192.8,0.2412]
[1763268627011,12.877,3193.4,3193.3,0.2412]
[1763268627615,4.08363864,3193.7,3193.6,0.2412]
[1763268628014,4.08653394,3193.7,3193.6,0.24514528]
[1763268628215,3.2452953,3193.7,3193.6,0.24514528]
[1763268629724,3.4852953,3193.7,3193.6,0.24514528]
[1763268631523,3.2452953,3193.7,3193.6,0.24514528]
[1763268631728,0.0374953,3193.7,3193.6,0.24514528]
[1763268635222,0.2643953,3193.7,3193.6,0.24514528]
[1763268640233,0.0374953,3193.7,3193.6,0.24514528]
[1763268643337,0.2643953,3193.7,3193.6,0.00394528]
[1763268652239,1.10563394,3193.7,3193.6,0.00394528]
[1763268653931,0.2269,3193.0,3192.9,3.4416]
[1763268655040,0.2269,3193.0,3192.9,3.4452461]
[1763268656842,15.118,3193.1,3193.0,0.375]
[1763268658136,15.3449,3193.1,3193.0,0.375]
[1763268662062,0.236,3193.0,3192.9,3.2114461]
[1763268662263,0.236,3193.0,3192.9,3.4390461]
[1763268662963,15.118,3193.1,3193.0,0.3748]
[1763268663153,15.354,3193.1,3193.0,0.3748]
[1763268667967,15.354,3193.1,3193.0,0.2276]
[1763268668174,0.236,3193.0,3192.9,3.2114461]
[1763268668675,0.236,3193.0,3192.9,3.4390461]
[1763268673079,0.3789,3193.0,3192.9,3.2114461]
[1763268674777,0.3789,3193.0,3192.9,0.0036461]
[1763268680174,0.1425,3192.5,3192.4,3.2078]
[1763268680481,16.32984927,3192.5,3192.4,3.2078]
[1763268681186,16.32984927,3192.5,3192.4,3.21137368]
[1763268683084,16.32984927,3192.5,3192.4,0.00357368]
[1763268683284,15.3456,3192.5,3192.4,0.25227368]
[1763268684378,15.4827,3192.5,3192.4,0.00357368]
[1763268684583,16.32444927,3192.5,3192.4,0.00357368]
[1763268686274,15.4827,3192.5,3192.4,0.00357368]
[1763268686481,16.32444927,3192.5,3192.4,0.00357368]
[1763268687282,15.3456,3192.5,3192.4,0.25227368]
[1763268692284,15.4834,3192.5,3192.4,0.00357368]
[1763268692889,15.3456,3192.5,3192.4,0.23057368]
[1763268695593,15.3456,3192.5,3192.4,0.00357368]
[1763268697495,15.4837,3192.5,3192.4,0.00357368]
[1763268697694,1.07114927,3192.7,3192.6,0.227]
[1763268697895,1.07114927,3193.2,3193.1,0.227]
[1763268698095,0.2294,3193.1,3193.0,0.1473]
[1763268698294,1.07020273,3193.1,3193.0,0.227]
[1763268698495,0.2294,3193.1,3193.0,0.227]
[1763268699897,0.2294,3192.6,3192.5,3.3551]
[1763268700197,0.2294,3192.6,3192.5,3.2078]
[1763268700401,0.3675,3192.5,3192.4,0.00357368]
[1763268701391,15.121,3192.8,3192.7,0.227]
[1763268701691,15.3504,3192.8,3192.7,0.227]
[1763268707504,15.3504,3192.8,3192.7,3.4348]
[1763268708706,15.3504,3192.8,3192.7,0.227]
[1763268708906,15.3504,3192.8,3192.7,3.4348]
[1763268713002,15.121,3192.8,3192.7,3.4348]
[1763268713506,15.3504,3192.8,3192.7,3.4348]
[1763268713698,15.3504,3192.8,3192.7,3.2078]
[1763268716102,0.2294,3192.5,3192.4,0.23057368]
[1763268717108,0.2294,3192.5,3192.4,0.00357368]
[1763268717109,15.4865,3192.5,3192.4,0.00357368]
[1763268718313,15.3484,3192.5,3192.4,0.23057368]
[1763268719818,0.2255,3192.8,3192.7,0.2398]
[1763268720018,10.2525,3192.8,3192.7,0.2398]
[1763268720518,10.2525,3192.8,3192.5,0.1456]
[1763268720519,0.2255,3192.6,3192.5,0.3854]
[1763268720718,0.2255,3192.6,3192.5,0.2398]
[1763268722323,0.2255,3192.6,3192.5,0.3854]
[1763268723322,10.027,3192.8,3192.7,0.2398]
[1763268723523,0.84173277,3193.0,3192.9,0.2398]
[1763268723828,18.48103277,3193.5,3193.4,0.2398]
[1763268726929,17.6393,3193.5,3193.4,0.2398]
[1763268727126,0.2255,3192.9,3192.8,1.12626379]
[1763268727323,0.2255,3192.8,3192.7,4.33406379]
[1763268727524,0.2255,3192.8,3192.7,3.2078]
[1763268730435,0.2255,3192.8,3192.7,3.4476]
[1763268730622,15.96073277,3193.1,3192.7,3.4476]
[1763268730931,0.2255,3192.8,3192.7,3.4476]
[1763268732537,0.2255,3192.8,3192.7,3.2078]
[1763268732737,1.06723277,3192.8,3192.7,3.2078]
[1763268735235,1.34783236,3192.8,3192.7,3.2078]
[1763268735635,0.3648,3192.5,3192.4,0.00357368]
[1763268735836,15.4828,3192.5,3192.4,0.00357368]
[1763268738338,16.32455455,3192.5,3192.4,0.00357368]
[1763268741330,15.4828,3192.5,3192.4,0.00357368]
[1763268755742,16.32256543,3192.5,3192.1,3.21250507]
[1763268755948,0.2283,3192.2,3192.1,3.21250507]
[1763268756154,15.3483,3192.2,3192.1,3.21250507]
[1763268756843,15.3483,3192.2,3192.1,3.2165212]
[1763268757945,15.3483,3192.2,3192.1,3.4611212]
[1763268758651,15.3483,3192.2,3192.1,3.2165212]
[1763268760952,15.3483,3192.2,3192.1,0.0087212]
[1763268761354,16.18806543,3192.2,3192.1,0.0087212]
[1763268764655,16.18806543,3192.2,3192.1,0.2533212]
[1763268768054,16.18806543,3192.2,3192.1,0.0087212]
[1763268769153,15.3483,3192.2,3192.1,0.0087212]
[1763268783870,15.3483,3192.2,3192.1,0.2381212]
[1763268784071,16.19031777,3192.2,3192.1,0.2381212]
[1763268784368,15.3493,3192.2,3192.1,0.0087212]
[1763268785664,16.47163236,3192.2,3192.1,0.0087212]
[1763268788275,16.47163236,3192.2,3192.1,0.2381212]
[1763268788775,16.47163236,3192.2,3192.1,0.0087212]
[1763268800489,16.47163236,3192.2,3192.1,0.2427212]
[1763268800785,15.3483,3192.2,3192.1,0.2427212]
[1763268802785,15.3596,3192.2,3192.1,0.0087212]
[1763268804289,16.48193236,3192.2,3192.1,0.0087212]
[1763268833120,16.48193236,3192.2,3192.1,0.2362212]
[1763268833518,0.2396,3192.2,3192.1,0.2362212]
[1763268833715,15.95931603,3192.2,3192.1,0.2362212]
[1763268833920,15.117,3192.2,3192.1,0.2362212]
[1763268835614,15.3609,3192.2,3192.1,0.2362212]
[1763268835924,16.20321603,3192.2,3192.1,0.0087212]
[1763268836316,16.20321603,3192.2,3192.1,0.2362212]
[1763268837418,15.3609,3192.2,3192.1,0.2362212]
[1763268840325,15.117,3192.2,3192.1,0.2362212]
[1763268840728,15.117,3192.2,3192.1,1.36248499]
[1763268841528,15.3501,3192.2,3192.1,1.36248499]
[1763268844023,15.3501,3192.2,3192.1,4.57028499]
[1763268844223,15.3501,3192.2,3192.1,3.4440212]
[1763268846825,15.3501,3192.2,3192.1,3.2165212]
[1763268848324,15.3501,3192.2,3192.1,3.4638212]
[1763268850635,15.3501,3192.2,3192.1,3.2165212]
[1763268851642,15.117,3192.2,3192.1,3.4638212]
[1763268851835,15.3471,3192.5,3192.4,0.2473]
[1763268855144,0.2318,3192.2,3192.1,4.58238499]
[1763268857342,15.2522,3192.5,3192.1,4.58238499]
[1763268857542,15.3458,3192.5,3192.4,0.2396]
[1763268859353,15.114,3192.5,3192.4,0.2396]
[1763268860549,0.2318,3192.9,3192.8,0.2396]
[1763268860738,15.3448,3192.9,3192.8,0.2396]
[1763268862046,0.2318,3192.9,3192.8,0.2396]
[1763268862936,0.2318,3192.8,3192.7,3.2078]
[1763268866255,0.2318,3192.8,3192.7,3.4474]
[1763268867854,0.2318,3192.8,3192.7,3.2078]
[1763268869654,0.2318,3192.6,3192.5,0.3816]
[1763268870363,0.2318,3192.6,3192.5,3.5894]
[1763268870660,0.2318,3192.6,3192.5,0.3816]
[1763268870859,0.2318,3192.6,3192.5,3.5894]
[1763268873464,0.1382,3193.0,3192.5,3.5894]
[1763268873765,0.2376,3193.0,3192.9,0.2286]
[1763268877465,16.19291603,3193.2,3193.1,0.2286]
[1763268877664,15.3476,3193.4,3193.3,0.2286]
[1763268880769,0.2376,3193.1,3193.0,3.582]
[1763268881870,0.2376,3193.1,3193.0,3.2078]
[1763268882270,0.2376,3193.1,3193.0,3.4364]
[1763268883963,0.2376,3193.1,3193.0,0.2286]
[1763268884161,0.2376,3193.1,3193.0,3.4364]
[1763268885966,15.3476,3193.4,3193.3,0.2286]
[1763268886365,15.3476,3193.4,3193.0,3.3534]
[1763268886672,0.2376,3193.1,3193.0,3.582]
[1763268886867,15.11,3193.4,3193.3,0.2286]
[1763268887067,1.15982766,3193.7,3193.6,0.2286]
[1763268887068,0.2750953,3193.7,3193.6,0.2286]
[1763268887279,0.0374953,3193.7,3193.6,3.4364]
[1763268887576,0.0374953,3193.7,3193.6,4.56266379]
[1763268888176,0.0374953,3193.7,3193.6,3.4364]
[1763268889078,0.2750953,3193.7,3193.6,3.4364]
[1763268889264,0.2750953,3193.7,3193.6,3.2078]
[1763268892176,0.2750953,3193.7,3193.6,3.4364]
[1763268893879,0.2750953,3193.7,3193.6,3.2078]
[1763268894281,0.2750953,3193.7,3193.6,3.4364]
[1763268895877,0.0374953,3193.7,3193.6,3.4364]
[1763268896285,0.2750953,3193.7,3193.6,3.4364]
[1763268898886,0.2750953,3193.7,3193.6,3.2078]
[1763268900387,0.2750953,3193.7,3193.6,3.4373]
[1763268901087,0.0374953,3193.7,3193.6,3.4373]
[1763268902888,0.2432,3193.3,3193.2,1.12626379]
[1763268903078,0.0374953,3193.7,3193.0,1.83338236]
[1763268903079,0.2432,3193.1,3193.0,0.3751]
[1763268903279,0.2432,3192.8,3192.7,4.56356379]
[1763268903486,0.1361,3193.5,3192.7,4.56356379]
[1763268908091,0.2432,3192.8,3192.7,3.4373]
[1763268908597,0.97841603,3193.5,3192.7,3.4373]
[1763268909386,0.84231603,3193.4,3192.7,3.4373]
[1763268909996,4.05011603,3193.4,3192.7,3.4373]
[1763268913786,0.84231603,3193.3,3192.7,3.4373]
[1763268917200,3.2078,3193.4,3192.7,3.4373]
[1763268917201,4.05011603,3193.4,3192.7,3.4373]
[1763268917400,0.84231603,3193.3,3192.7,3.4373]
[1763268918102,4.05011603,3193.4,3192.7,3.4373]
[1763268918300,0.84231603,3193.3,3192.7,3.4373]
[1763268918505,1.08411603,3193.3,3193.2,0.2458]
[1763268918801,4.05011603,3193.4,3193.3,0.2458]
[1763268919205,3.4496,3193.4,3193.3,0.2458]
[1763268919402,4.0455468,3193.4,3193.3,0.2458]
[1763268919702,0.1407,3193.5,3193.1,3.2078]
[1763268919906,0.2418,3193.2,3193.1,3.4536]
[1763268922610,0.2418,3193.2,3193.1,3.2078]
[1763268923209,0.2418,3193.2,3193.1,3.4536]
[1763268924706,0.83822706,3193.6,3193.1,3.4536]
[1763268925006,1.08002706,3193.6,3193.5,0.2458]
[1763268925408,1.08002706,3193.6,3193.1,3.2078]
[1763268926908,0.83822706,3193.6,3193.5,0.3855]
[1763268927311,1.08002706,3193.6,3193.5,0.3855]
[1763268928511,0.83822706,3193.6,3193.5,0.3855]
[1763268930801,1.06712706,3193.6,3193.1,3.2078]
[1763268932110,0.83822706,3193.5,3193.1,3.2078]
[1763268932611,0.83822706,3193.5,3193.4,0.2387]
[1763268932910,1.06712706,3193.5,3193.4,0.2387]
[1763268935715,0.83822706,3193.5,3193.4,0.2387]
[1763268935913,0.83822706,3193.6,3193.5,0.3754]
[1763268937519,0.87572236,3193.7,3193.6,0.2387]
[1763268938021,1.10462236,3193.7,3193.6,0.2387]
[1763268941121,0.2289,3193.6,3193.1,3.2078]
[1763268941417,1.06826144,3193.6,3193.1,3.2078]
[1763268942017,0.2289,3193.6,3193.1,3.2078]
[1763268942220,0.2289,3193.6,3193.5,0.2387]
[1763268942514,1.06826144,3193.6,3193.5,0.2387]
[1763268942718,0.2289,3193.6,3193.5,0.2387]
[1763268943216,1.06826144,3193.6,3193.5,0.2387]
[1763268944020,0.87685674,3193.7,3193.6,0.2387]
[1763268944214,1.10575674,3193.7,3193.6,0.2387]
[1763268946724,0.0374953,3193.7,3193.6,0.2387]
[1763268947613,0.2289,3193.6,3193.5,0.1367]
[1763268947922,0.2289,3193.6,3193.4,3.2078]
[1763268947923,0.2289,3193.5,3193.4,3.4465]
[1763268948123,0.0374953,3193.7,3193.6,0.2387]
[1763268948515,0.2663953,3193.7,3193.6,0.2387]